fUST/lending_fUST_20240913
["ID","MTS","AMOUNT","RATE_DAILY","PERIOD"]
[337854196,1726157448615,-184.27116,0.00016438,2]
[337854197,1726157448625,-151.0,0.00016438,2]
[337854198,1726157448635,-184.27116,0.00016438,2]
[337854199,1726157448645,-151.0,0.00016438,2]
[337854200,1726157448656,-184.27116,0.00016438,2]
[337854201,1726157448667,-151.0,0.00016438,2]
[337854202,1726157448676,-184.27116,0.00016438,2]
[337854203,1726157448685,-151.0,0.00016438,2]
[337854204,1726157448695,-184.27116,0.00016438,2]
[337854205,1726157448706,-151.0,0.00016438,2]
[337854206,1726157448716,-184.27116,0.00016438,2]
[337854207,1726157448727,-151.0,0.00016438,2]
[337854208,1726157448738,-184.27116,0.00016438,2]
[337854209,1726157448747,-184.27116,0.00016438,2]
[337854210,1726157448758,-184.27116,0.00016438,2]
[337854211,1726157448769,-184.27116,0.00016438,2]
[337854212,1726157448778,-184.27116,0.00016438,2]
[337854213,1726157448789,-184.27116,0.00016438,2]
[337854214,1726157448799,-184.27116,0.00016438,2]
[337854215,1726157448809,-184.27116,0.00016438,2]
[337854216,1726157448819,-184.27116,0.00016438,2]
[337854217,1726157448829,-184.27116,0.00016438,2]
[337854218,1726157448839,-184.27116,0.00016438,2]
[337854219,1726157448849,-184.27116,0.00016438,2]
[337854220,1726157448858,-184.271158,0.00016438,2]
[337854221,1726157448869,-151.0,0.00016438,2]
[337854222,1726157448878,-151.0,0.00016438,2]
[337854223,1726157448889,-151.0,0.00016438,2]
[337854224,1726157448899,-151.0,0.00016438,2]
[337854225,1726157448908,-151.0,0.00016438,2]
[337854226,1726157448918,-338.079855,0.00016438,2]
[337854227,1726157448928,-338.079855,0.00016438,2]
[337854228,1726157448941,-338.079855,0.00016438,2]
[337854229,1726157448952,-338.079855,0.00016438,2]
[337854230,1726157448962,-338.079855,0.00016438,2]
[337854231,1726157448971,-338.079855,0.00016438,2]
[337854232,1726157448982,-338.079855,0.00016438,2]
[337854233,1726157448992,-151.0,0.00016438,2]
[337854234,1726157449003,-338.079855,0.00016438,2]
[337854235,1726157449015,-151.0,0.00016438,2]
[337854236,1726157449026,-151.0,0.00016438,2]
[337854237,1726157449037,-151.0,0.00016438,2]
[337854238,1726157449047,-151.0,0.00016438,2]
[337854239,1726157449058,-151.0,0.00016438,2]
[337854240,1726157449068,-151.0,0.00016438,2]
[337854241,1726157449078,-151.0,0.00016438,2]
[337854242,1726157449088,-151.0,0.00016438,2]
[337854243,1726157449098,-151.0,0.00016438,2]
[337854244,1726157449109,-151.0,0.00016438,2]
[337854245,1726157449119,-151.0,0.00016438,2]
[337854246,1726157449129,-151.0,0.00016438,2]
[337854247,1726157449138,-151.0,0.00016438,2]
[337854248,1726157449148,-151.0,0.00016438,2]
[337854249,1726157449158,-151.0,0.00016438,2]
[337854250,1726157449169,-151.0,0.00016438,2]
[337854251,1726157449180,-151.0,0.00016438,2]
[337854252,1726157449190,-151.0,0.00016438,2]
[337854253,1726157449200,-151.0,0.00016438,2]
[337854254,1726157449209,-151.0,0.00016438,2]
[337854255,1726157449219,-151.0,0.00016438,2]
[337854256,1726157449229,-151.0,0.00016438,2]
[337854257,1726157449240,-151.0,0.00016438,2]
[337854258,1726157449250,-151.0,0.00016438,2]
[337854259,1726157449260,-151.0,0.00016438,2]
[337854260,1726157449270,-151.0,0.00016438,2]
[337854261,1726157449280,-161.57908,0.00016438,2]
[337854262,1726157449290,-151.0,0.00016438,2]
[337854263,1726157449300,-151.0,0.00016438,2]
[337854264,1726157449310,-151.0,0.00016438,2]
[337854265,1726157449320,-151.0,0.00016438,2]
[337854266,1726157449331,-151.0,0.00016438,2]
[337854267,1726157449340,-151.0,0.00016438,2]
[337854268,1726157449352,-151.0,0.00016438,2]
[337854269,1726157449361,-260.610358,0.00016438,2]
[337854270,1726157449371,-234.981143,0.00016438,2]
[337854271,1726157449515,-234.981143,0.00016438,2]
[337854272,1726157449526,-234.981143,0.00016438,2]
[337854273,1726157449538,-234.981143,0.00016438,2]
[337854274,1726157449548,-234.981143,0.00016438,2]
[337854275,1726157449559,-234.981143,0.00016438,2]
[337854276,1726157449568,-234.981143,0.00016438,2]
[337854277,1726157449578,-234.981143,0.00016438,2]
[337854278,1726157449588,-234.981143,0.00016438,2]
[337854279,1726157449597,-234.981143,0.00016438,2]
[337854280,1726157449608,-234.981143,0.00016438,2]
[337854281,1726157449620,-234.981143,0.00016438,2]
[337854282,1726157449630,-234.981143,0.00016438,2]
[337854283,1726157449641,-234.981143,0.00016438,2]
[337854284,1726157449651,-234.981143,0.00016438,2]
[337854285,1726157449661,-234.981143,0.00016438,2]
[337854286,1726157449670,-234.981143,0.00016438,2]
[337854287,1726157449682,-234.981143,0.00016438,2]
[337854288,1726157449692,-234.981143,0.00016438,2]
[337854289,1726157449702,-234.981144,0.00016438,2]
[337854290,1726157449712,-151.0,0.00016438,2]
[337854291,1726157449721,-151.0,0.00016438,2]
[337854292,1726157449731,-151.0,0.00016438,2]
[337854293,1726157449741,-151.0,0.00016438,2]
[337854294,1726157449750,-151.0,0.00016438,2]
[337854295,1726157449760,-151.0,0.00016438,2]
[337854296,1726157449772,-151.0,0.00016438,2]
[337854297,1726157449781,-151.0,0.00016438,2]
[337854298,1726157449792,-151.0,0.00016438,2]
[337854299,1726157449803,-151.0,0.00016438,2]
[337854300,1726157449813,-151.0,0.00016438,2]
[337854301,1726157449825,-2955.679902,0.00016438,2]
[337854302,1726157449835,-196.076074,0.00016438,2]
[337854303,1726157449845,-2955.679902,0.00016438,2]
[337854304,1726157449855,-2955.679902,0.00016438,2]
[337854305,1726157449865,-2955.679902,0.00016438,2]
[337854306,1726157449874,-2955.679902,0.00016438,2]
[337854307,1726157449885,-2955.679902,0.00016438,2]
[337854308,1726157449894,-2955.679902,0.00016438,2]
[337854309,1726157449904,-2955.679902,0.00016438,2]
[337854310,1726157449913,-2955.679902,0.00016438,2]
[337854311,1726157449923,-2955.679902,0.00016438,2]
[337854312,1726157449936,-2955.679902,0.00016438,2]
[337854313,1726157449946,-2955.679902,0.00016438,2]
[337854314,1726157449955,-2955.679902,0.00016438,2]
[337854315,1726157449965,-2955.679902,0.00016438,2]
[337854316,1726157449975,-2955.679902,0.00016438,2]
[337854317,1726157449984,-2955.679902,0.00016438,2]
[337854318,1726157449995,-2955.679902,0.00016438,2]
[337854319,1726157450004,-2955.679902,0.00016438,2]
[337854320,1726157450015,-2955.679902,0.00016438,2]
[337854321,1726157450025,-2955.679898,0.00016438,2]
[337854322,1726157450034,-348.716447,0.00016438,2]
[337854323,1726157450043,-348.716447,0.00016438,2]
[337854324,1726157450052,-348.716447,0.00016438,2]
[337854325,1726157450062,-348.716447,0.00016438,2]
[337854326,1726157450071,-348.716447,0.00016438,2]
[337854327,1726157450081,-348.716447,0.00016438,2]
[337854328,1726157450090,-348.716447,0.00016438,2]
[337854329,1726157450099,-348.716447,0.00016438,2]
[337854330,1726157450109,-348.716447,0.00016438,2]
[337854331,1726157450118,-348.716447,0.00016438,2]
[337854332,1726157450127,-348.716447,0.00016438,2]
[337854333,1726157450137,-348.716447,0.00016438,2]
[337854334,1726157450146,-348.716451,0.00016438,2]
[337854335,1726157450155,-531.572668,0.00016438,2]
[337854336,1726157450165,-531.572668,0.00016438,2]
[337854337,1726157450179,-531.572668,0.00016438,2]
[337854338,1726157450188,-531.572668,0.00016438,2]
[337854339,1726157450197,-531.572668,0.00016438,2]
[337854340,1726157450206,-531.572668,0.00016438,2]
[337854341,1726157450215,-531.572668,0.00016438,2]
[337854342,1726157450224,-531.572668,0.00016438,2]
[337854343,1726157450234,-531.572668,0.00016438,2]
[337854344,1726157450243,-531.572668,0.00016438,2]
[337854345,1726157450253,-531.572668,0.00016438,2]
[337854346,1726157450262,-531.572668,0.00016438,2]
[337854347,1726157450272,-531.572668,0.00016438,2]
[337854348,1726157450282,-531.572668,0.00016438,2]
[337854349,1726157450291,-531.572668,0.00016438,2]
[337854350,1726157450300,-531.572668,0.00016438,2]
[337854351,1726157450309,-165.04284897,0.00016438,2]
[337854352,1726157450680,3000.0,0.00015467,2]
[337854355,1726157633622,250.0,0.00015407,2]
[337854356,1726157716721,460.332431,0.00013699,2]
[337854362,1726158275566,451.25,0.00013699,2]
[337854373,1726158347148,-1050.89230192,0.00016338,2]
[337854389,1726158403438,339.6,0.00028,120]
[337854390,1726158425116,-166.48976496,0.00016238,2]
[337854391,1726158425137,-167.15689732,0.00016238,2]
[337854392,1726158425157,-167.15689732,0.00016304,2]
[337854393,1726158425179,-4128.33925236,0.0001632,2]
[337854394,1726158431103,-1208.93784785,0.0001632,2]
[337854395,1726158436104,-124.67054643,0.0001632,2]
[337854396,1726158436127,-300.0,0.00016337,2]
[337854397,1726158436148,-300.0,0.00016337,2]
[337854398,1726158436171,-1392.91069587,0.00016338,2]
[337854399,1726158436192,-614.55420906,0.00016338,2]
[337854400,1726158436214,-152.88503003,0.00016338,2]
[337854401,1726158443095,-556.95617211,0.00016338,2]
[337854406,1726158513148,824.30143065,0.00012,7]
[337854408,1726158525736,6202.64120711,0.000136,2]
[337854469,1726158632148,-2517.73731634,0.00016328,2]
[337854471,1726158632169,-290.15879786,0.00016338,2]
[337854473,1726158632179,-573.9,0.00016394,2]
[337854475,1726158632188,-3315.30502962,0.000164,2]
[337854520,1726158638242,-3969.08897032,0.000164,2]
[337854521,1726158638252,-614.55420902,0.00016404,2]
[337854522,1726158638263,-300.0,0.00016425,2]
[337854523,1726158638272,-300.0,0.00016426,2]
[337854524,1726158638285,-500.0,0.00016427,2]
[337854525,1726158638295,-221.93926233,0.00016427,2]
[337854526,1726158638305,-156.8025832,0.00016427,2]
[337854527,1726158638314,-500.0,0.00016427,2]
[337854528,1726158638323,-488.18739759,0.00016427,2]
[337854537,1726158640148,-1918.07920957,0.00016338,2]
[337854538,1726158640158,-101.76886251,0.00016427,2]
[337854539,1726158640169,-500.0,0.00016427,2]
[337854540,1726158640178,-500.0,0.00016427,2]
[337854541,1726158640188,-500.0,0.00016427,2]
[337854542,1726158640197,-261.00455618,0.00016427,2]
[337854543,1726158640207,-500.0,0.00016427,2]
[337854544,1726158640216,-538.79818231,0.00016427,2]
[337854545,1726158640225,-500.0,0.00016427,2]
[337854546,1726158640235,-500.0,0.00016427,2]
[337854547,1726158640244,-500.0,0.00016427,2]
[337854548,1726158640253,-70518.3451305,0.00016428,2]
[337854549,1726158640264,-7402.5105929,0.00016428,2]
[337854557,1726158643103,-92044.6084092,0.00016428,2]
[337854558,1726158643113,-17629.5862826,0.00016428,2]
[337854559,1726158643123,-2253.7636314,0.00016428,2]
[337854560,1726158643162,-18812.50000007,0.00016428,2]
[337854614,1726158646249,-573.0,0.00016428,2]
[337854616,1726158649022,-3222.51611903,0.00016428,2]
[337854617,1726158649033,-1422.78970632,0.0001643,2]
[337854618,1726158649046,-32018.0639306,0.0001643,2]
[337854619,1726158649056,-998.90631029,0.00016437,2]
[337854620,1726158649067,-150.01,0.00016437,2]
[337854621,1726158649077,-2270.70107578,0.00016437,2]
[337854622,1726158649087,-160.0,0.00016437,2]
[337854623,1726158649098,-304.44567351,0.00016437,2]
[337854624,1726158649108,-509.33945968,0.00016438,2]
[337854625,1726158649118,-501.10648489,0.00016438,2]
[337854626,1726158649128,-479.61587673,0.00016438,2]
[337854627,1726158649138,-508.08978922,0.00016438,2]
[337854628,1726158649148,-502.89839251,0.00016438,2]
[337854629,1726158649158,-501.7908968,0.00016438,2]
[337854630,1726158649169,-500.0,0.00016438,2]
[337854631,1726158649186,-277.39322571,0.00016438,2]
[337854632,1726158649195,-500.0,0.00016438,2]
[337854633,1726158649205,-500.0,0.00016438,2]
[337854634,1726158649214,-500.0,0.00016438,2]
[337854635,1726158649224,-151.0,0.00016438,2]
[337854636,1726158649235,-151.0,0.00016438,2]
[337854637,1726158649245,-500.0,0.00016438,2]
[337854638,1726158649255,-500.0,0.00016438,2]
[337854639,1726158649265,-500.0,0.00016438,2]
[337854640,1726158649275,-500.0,0.00016438,2]
[337854641,1726158649288,-500.0,0.00016438,2]
[337854642,1726158649297,-500.0,0.00016438,2]
[337854643,1726158649307,-500.0,0.00016438,2]
[337854644,1726158649317,-500.0,0.00016438,2]
[337854645,1726158649329,-500.0,0.00016438,2]
[337854646,1726158649339,-512.37068296,0.00016438,2]
[337854647,1726158649348,-500.0,0.00016438,2]
[337854648,1726158649358,-500.0,0.00016438,2]
[337854649,1726158649368,-500.0,0.00016438,2]
[337854650,1726158649378,-685.23,0.00016438,2]
[337854651,1726158649388,-500.0,0.00016438,2]
[337854652,1726158649398,-500.0,0.00016438,2]
[337854653,1726158649408,-500.0,0.00016438,2]
[337854654,1726158649419,-500.0,0.00016438,2]
[337854655,1726158649429,-500.0,0.00016438,2]
[337854656,1726158649439,-520.61,0.00016438,2]
[337854657,1726158649450,-503.87704076,0.00016438,2]
[337854658,1726158649460,-500.0,0.00016438,2]
[337854659,1726158649470,-500.0,0.00016438,2]
[337854660,1726158649480,-500.0,0.00016438,2]
[337854661,1726158649490,-368.61274053,0.00016438,2]
[337854662,1726158649501,-500.0,0.00016438,2]
[337854663,1726158649511,-500.0,0.00016438,2]
[337854664,1726158649520,-500.0,0.00016438,2]
[337854665,1726158649530,-500.0,0.00016438,2]
[337854667,1726158649540,-500.0,0.00016438,2]
[337854668,1726158649550,-500.0,0.00016438,2]
[337854669,1726158649560,-500.0,0.00016438,2]
[337854670,1726158649569,-510.23657448,0.00016438,2]
[337854671,1726158649579,-500.0,0.00016438,2]
[337854672,1726158649588,-500.0,0.00016438,2]
[337854673,1726158649598,-500.0,0.00016438,2]
[337854674,1726158649607,-500.0,0.00016438,2]
[337854675,1726158649618,-500.0,0.00016438,2]
[337854676,1726158649628,-500.0,0.00016438,2]
[337854677,1726158649638,-500.0,0.00016438,2]
[337854678,1726158649648,-500.0,0.00016438,2]
[337854679,1726158649657,-721.49,0.00016438,2]
[337854680,1726158649668,-500.0,0.00016438,2]
[337854681,1726158649677,-500.0,0.00016438,2]
[337854682,1726158649687,-500.0,0.00016438,2]
[337854683,1726158649696,-500.0,0.00016438,2]
[337854684,1726158649706,-500.0,0.00016438,2]
[337854685,1726158649716,-500.0,0.00016438,2]
[337854686,1726158649726,-500.0,0.00016438,2]
[337854687,1726158649735,-500.0,0.00016438,2]
[337854688,1726158649745,-500.0,0.00016438,2]
[337854689,1726158649754,-271.51837303,0.00016438,2]
[337854690,1726158649763,-500.0,0.00016438,2]
[337854691,1726158649773,-500.0,0.00016438,2]
[337854692,1726158649783,-500.0,0.00016438,2]
[337854693,1726158649792,-500.0,0.00016438,2]
[337854694,1726158649802,-599.37,0.00016438,2]
[337854695,1726158649812,-244.82042686,0.00016438,2]
[337854696,1726158649822,-500.0,0.00016438,2]
[337854697,1726158649831,-500.0,0.00016438,2]
[337854698,1726158649841,-367.51002667,0.00016438,2]
[337854699,1726158649851,-500.0,0.00016438,2]
[337854700,1726158649860,-500.0,0.00016438,2]
[337854701,1726158649870,-500.0,0.00016438,2]
[337854702,1726158649879,-500.0,0.00016438,2]
[337854703,1726158649889,-500.0,0.00016438,2]
[337854704,1726158649899,-500.0,0.00016438,2]
[337854705,1726158649909,-500.0,0.00016438,2]
[337854706,1726158649918,-500.0,0.00016438,2]
[337854707,1726158649927,-500.0,0.00016438,2]
[337854708,1726158649936,-265.33,0.00016438,2]
[337854709,1726158649946,-526.13699344,0.00016438,2]
[337854710,1726158649955,-200.0,0.00016438,2]
[337854711,1726158649965,-500.0,0.00016438,2]
[337854712,1726158649974,-500.0,0.00016438,2]
[337854713,1726158649984,-500.0,0.00016438,2]
[337854714,1726158649993,-500.0,0.00016438,2]
[337854715,1726158650003,-500.0,0.00016438,2]
[337854716,1726158650012,-500.0,0.00016438,2]
[337854717,1726158650022,-500.0,0.00016438,2]
[337854718,1726158650031,-500.0,0.00016438,2]
[337854719,1726158650041,-500.0,0.00016438,2]
[337854720,1726158650051,-500.0,0.00016438,2]
[337854721,1726158650060,-500.0,0.00016438,2]
[337854722,1726158650072,-500.0,0.00016438,2]
[337854723,1726158650082,-500.0,0.00016438,2]
[337854724,1726158650091,-500.0,0.00016438,2]
[337854725,1726158650100,-500.0,0.00016438,2]
[337854726,1726158650110,-500.0,0.00016438,2]
[337854727,1726158650119,-500.0,0.00016438,2]
[337854728,1726158650129,-500.0,0.00016438,2]
[337854729,1726158650139,-539.93,0.00016438,2]
[337854730,1726158650148,-861.76,0.00016438,2]
[337854731,1726158650157,-500.0,0.00016438,2]
[337854732,1726158650167,-837.13,0.00016438,2]
[337854733,1726158650177,-500.0,0.00016438,2]
[337854734,1726158650186,-500.0,0.00016438,2]
[337854735,1726158650195,-500.0,0.00016438,2]
[337854736,1726158650205,-500.0,0.00016438,2]
[337854737,1726158650214,-500.0,0.00016438,2]
[337854738,1726158650224,-500.0,0.00016438,2]
[337854739,1726158650234,-500.0,0.00016438,2]
[337854741,1726158650244,-500.0,0.00016438,2]
[337854742,1726158650254,-500.0,0.00016438,2]
[337854743,1726158650263,-500.0,0.00016438,2]
[337854744,1726158650273,-500.0,0.00016438,2]
[337854745,1726158650284,-500.0,0.00016438,2]
[337854746,1726158650294,-500.0,0.00016438,2]
[337854747,1726158650304,-500.0,0.00016438,2]
[337854748,1726158650314,-500.0,0.00016438,2]
[337854749,1726158650324,-500.0,0.00016438,2]
[337854750,1726158650333,-500.0,0.00016438,2]
[337854751,1726158650343,-500.0,0.00016438,2]
[337854752,1726158650352,-500.0,0.00016438,2]
[337854753,1726158650363,-326.07726996,0.00016438,2]
[337854754,1726158650373,-500.0,0.00016438,2]
[337854755,1726158650382,-512.21,0.00016438,2]
[337854756,1726158650392,-500.0,0.00016438,2]
[337854757,1726158650401,-500.0,0.00016438,2]
[337854758,1726158650410,-500.0,0.00016438,2]
[337854759,1726158650420,-500.0,0.00016438,2]
[337854760,1726158650430,-500.0,0.00016438,2]
[337854761,1726158650440,-500.0,0.00016438,2]
[337854762,1726158650450,-500.0,0.00016438,2]
[337854763,1726158650460,-500.0,0.00016438,2]
[337854764,1726158650469,-500.0,0.00016438,2]
[337854765,1726158650479,-500.0,0.00016438,2]
[337854766,1726158650488,-500.0,0.00016438,2]
[337854767,1726158650499,-500.0,0.00016438,2]
[337854768,1726158650508,-500.0,0.00016438,2]
[337854769,1726158650518,-500.0,0.00016438,2]
[337854770,1726158650528,-500.0,0.00016438,2]
[337854771,1726158650538,-500.0,0.00016438,2]
[337854772,1726158650547,-500.0,0.00016438,2]
[337854773,1726158650556,-500.0,0.00016438,2]
[337854774,1726158650566,-500.0,0.00016438,2]
[337854775,1726158650575,-500.0,0.00016438,2]
[337854776,1726158650585,-500.0,0.00016438,2]
[337854777,1726158650594,-500.0,0.00016438,2]
[337854778,1726158650603,-500.0,0.00016438,2]
[337854779,1726158650613,-500.0,0.00016438,2]
[337854780,1726158650622,-500.0,0.00016438,2]
[337854781,1726158650633,-500.0,0.00016438,2]
[337854782,1726158650642,-500.0,0.00016438,2]
[337854783,1726158650652,-500.0,0.00016438,2]
[337854784,1726158650662,-500.0,0.00016438,2]
[337854785,1726158650674,-500.0,0.00016438,2]
[337854786,1726158650683,-503.54279837,0.00016438,2]
[337854787,1726158650692,-989.63,0.00016438,2]
[337854788,1726158650701,-500.0,0.00016438,2]
[337854789,1726158650710,-500.0,0.00016438,2]
[337854790,1726158650720,-500.0,0.00016438,2]
[337854791,1726158650730,-500.0,0.00016438,2]
[337854792,1726158650739,-500.0,0.00016438,2]
[337854793,1726158650750,-500.0,0.00016438,2]
[337854794,1726158650764,-868.17,0.00016438,2]
[337854795,1726158650774,-500.0,0.00016438,2]
[337854796,1726158650784,-506.45396888,0.00016438,2]
[337854797,1726158650794,-500.0,0.00016438,2]
[337854798,1726158650804,-500.0,0.00016438,2]
[337854799,1726158650814,-500.0,0.00016438,2]
[337854800,1726158650824,-500.0,0.00016438,2]
[337854801,1726158650834,-500.0,0.00016438,2]
[337854802,1726158650844,-500.0,0.00016438,2]
[337854803,1726158650854,-500.0,0.00016438,2]
[337854804,1726158650863,-649.92,0.00016438,2]
[337854805,1726158650872,-727.75,0.00016438,2]
[337854806,1726158650882,-500.0,0.00016438,2]
[337854807,1726158650892,-436.86837749,0.00016438,2]
[337854808,1726158650902,-500.0,0.00016438,2]
[337854809,1726158650911,-504.63005103,0.00016438,2]
[337854810,1726158650922,-936.76,0.00016438,2]
[337854811,1726158650932,-500.0,0.00016438,2]
[337854812,1726158650941,-500.0,0.00016438,2]
[337854813,1726158650950,-500.0,0.00016438,2]
[337854814,1726158650960,-500.0,0.00016438,2]
[337854815,1726158650970,-500.0,0.00016438,2]
[337854816,1726158650980,-1045.69,0.00016438,2]
[337854817,1726158650991,-500.0,0.00016438,2]
[337854818,1726158651001,-1111.96,0.00016438,2]
[337854819,1726158651010,-500.0,0.00016438,2]
[337854820,1726158651021,-500.0,0.00016438,2]
[337854821,1726158651031,-500.0,0.00016438,2]
[337854822,1726158651041,-500.0,0.00016438,2]
[337854823,1726158651052,-500.0,0.00016438,2]
[337854824,1726158651062,-500.0,0.00016438,2]
[337854825,1726158651075,-500.0,0.00016438,2]
[337854826,1726158651085,-500.0,0.00016438,2]
[337854827,1726158651094,-500.0,0.00016438,2]
[337854828,1726158651104,-500.0,0.00016438,2]
[337854829,1726158651113,-500.0,0.00016438,2]
[337854830,1726158651123,-500.0,0.00016438,2]
[337854831,1726158651134,-500.0,0.00016438,2]
[337854832,1726158651144,-439.53402322,0.00016438,2]
[337854833,1726158651154,-500.0,0.00016438,2]
[337854835,1726158651164,-500.0,0.00016438,2]
[337854836,1726158651174,-643.5,0.00016438,2]
[337854837,1726158651183,-500.0,0.00016438,2]
[337854838,1726158651194,-500.0,0.00016438,2]
[337854839,1726158651203,-500.0,0.00016438,2]
[337854840,1726158651214,-500.0,0.00016438,2]
[337854841,1726158651225,-684.92542383,0.00016438,2]
[337854842,1726158651487,-434.43457617,0.00016438,2]
[337854843,1726158651497,-310.72501153,0.00016438,2]
[337854844,1726158651508,-199.49051825,0.00016438,2]
[337854845,1726158651518,-500.0,0.00016438,2]
[337854846,1726158651527,-500.0,0.00016438,2]
[337854847,1726158651538,-500.0,0.00016438,2]
[337854848,1726158651547,-899.5,0.00016438,2]
[337854849,1726158651557,-153.71804309,0.00016438,2]
[337854850,1726158651566,-500.0,0.00016438,2]
[337854851,1726158651576,-500.0,0.00016438,2]
[337854852,1726158651586,-394.4,0.00016438,2]
[337854853,1726158651596,-83.09828571,0.00016438,2]
[337854865,1726158690756,155.68,0.00010959,2]
[337854866,1726158701337,778.43,0.00010959,2]
[337854870,1726158761334,10000.0,0.00016,2]
[337854875,1726158775413,1700.0,0.00016,2]
[337854876,1726158846828,166.666668,0.00015526,2]
[337854880,1726159107940,437.315809,0.00013699,2]
[337854904,1726159473657,636.96,0.00010959,2]
[337854907,1726159484238,530.8,0.00010959,2]
[337854909,1726159494804,442.33,0.00010959,2]
[337854913,1726159505459,368.61,0.00010959,2]
[337854915,1726159516232,307.18,0.00010959,2]
[337854916,1726159519679,250.0,0.00015392,2]
[337854918,1726159527016,255.98,0.00010959,2]
[337854919,1726159537304,213.32,0.00010959,2]
[337854920,1726159546137,-516.79112436,0.00016102,2]
[337854921,1726159546160,-192.70172254,0.00016102,2]
[337854922,1726159546184,-64.49692969,0.00016328,2]
[337854923,1726159548062,177.76,0.00010959,2]
[337854932,1726159558851,888.84,0.00010959,2]
[337854939,1726159590119,-150.00124481,0.00016328,2]
[337854944,1726159625093,-419.05186889,0.00016328,2]
[337854945,1726159626518,428.6875,0.00013699,2]
[337854946,1726159645354,-300.0,0.00016337,2]
[337854947,1726159645377,-491.64336724,0.00016338,2]
[337854948,1726159645401,-1729.64428683,0.00016338,2]
[337854949,1726159645423,-29.58914718,0.00016338,2]
[337854950,1726159650106,-479.80232901,0.00016338,2]
[337854951,1726159654110,-123.09982131,0.00016338,2]
[337854952,1726159654135,-1000.0,0.00016338,2]
[337854953,1726159654156,-1648.922953,0.0001634,2]
[337854959,1726159818986,497.50515674,0.00015754,2]
[337855009,1726159839143,-2706.9547182,0.00016328,2]
[337855010,1726159839154,-393.3146938,0.00016328,2]
[337855011,1726159839166,-393.31469376,0.00016331,2]
[337855012,1726159839175,-393.31469376,0.00016333,2]
[337855013,1726159839185,-393.31469376,0.00016336,2]
[337855014,1726159839194,-393.31469376,0.00016338,2]
[337855015,1726159839203,-1743.00700152,0.00016338,2]
[337855016,1726159839212,-1000.0,0.00016338,2]
[337855017,1726159839221,-300.0,0.00016393,2]
[337855018,1726159839230,-300.0,0.00016393,2]
[337855019,1726159839239,-1490.48,0.00016394,2]
[337855020,1726159839249,-6000.0,0.000164,2]
[337855021,1726159839258,-306.77828402,0.00016427,2]
[337855022,1726159839268,-500.0,0.00016427,2]
[337855023,1726159839277,-500.0,0.00016427,2]
[337855024,1726159839287,-500.0,0.00016427,2]
[337855025,1726159839297,-288.49853852,0.00016427,2]
[337855026,1726159839306,-500.0,0.00016427,2]
[337855027,1726159839315,-500.0,0.00016427,2]
[337855028,1726159839325,-500.0,0.00016427,2]
[337855029,1726159839334,-500.0,0.00016427,2]
[337855030,1726159839343,-500.0,0.00016427,2]
[337855031,1726159839354,-500.0,0.00016427,2]
[337855032,1726159839365,-500.0,0.00016427,2]
[337855033,1726159839375,-609.38785937,0.00016427,2]
[337855034,1726159839385,-500.0,0.00016427,2]
[337855035,1726159839394,-500.0,0.00016427,2]